[Event "British Rapidplay Championship 2023"]
[Site "Mercure Bradford, Bankfield Hotel"]
[Date "2023.04.15"]
[Round "6.5"]
[White "Sivanandan, Bodhana"]
[Black "Ismail, Mohammed Aayan"]
[Result "1/2-1/2"]
[TimeControl "15 minutes plus 10 seconds per move"]
[WhiteElo "1561"]
[BlackElo "2269"]

1. e4 {[%clk 00:15:19]} c6 {[%clk 00:14:34]} {[%emt 00:00:47]} 2. Nc3 {[%clk
00:15:27]} {[%emt 00:00:02]} d5 {[%clk 00:14:43]} {[%emt 00:00:01]} 3. Nf3
{[%clk 00:15:36]} {[%emt 00:00:01]} dxe4 {[%clk 00:14:51]} {[%emt 00:00:02]} 4.
Nxe4 {[%clk 00:15:44]} {[%emt 00:00:01]} Nf6 {[%clk 00:15:00]} {[%emt
00:00:01]} 5. Qe2 {[%clk 00:15:53]} {[%emt 00:00:02]} Nxe4 {[%clk 00:15:04]}
{[%emt 00:00:06]} 6. Qxe4 {[%clk 00:16:01]} {[%emt 00:00:02]} Nd7 {[%clk
00:15:03]} {[%emt 00:00:11]} 7. Bc4 {[%clk 00:16:07]} {[%emt 00:00:03]} Nf6
{[%clk 00:15:11]} {[%emt 00:00:03]} 8. Ne5 {[%clk 00:16:14]} {[%emt 00:00:03]}
e6 {[%clk 00:15:20]} {[%emt 00:00:01]} 9. Qe2 {[%clk 00:16:22]} {[%emt
00:00:03]} Qc7 {[%clk 00:15:18]} {[%emt 00:00:10]} 10. d4 {[%clk 00:16:02]}
{[%emt 00:00:30]} Bd6 {[%clk 00:14:51]} {[%emt 00:00:38]} 11. O-O {[%clk
00:16:07]} {[%emt 00:00:05]} O-O {[%clk 00:14:58]} {[%emt 00:00:02]} 12. c3
{[%clk 00:15:16]} {[%emt 00:01:02]} b5 {[%clk 00:12:01]} {[%emt 00:03:07]} 13.
Bd3 {[%clk 00:15:01]} {[%emt 00:00:24]} Bb7 {[%clk 00:11:05]} {[%emt 00:01:07]}
14. Bg5 {[%clk 00:12:36]} {[%emt 00:02:35]} Be7 {[%clk 00:09:38]} {[%emt
00:01:37]} 15. Ng4 {[%clk 00:10:09]} {[%emt 00:02:37]} Nxg4 {[%clk 00:07:59]}
{[%emt 00:01:49]} 16. Qxg4 {[%clk 00:10:11]} {[%emt 00:00:08]} Bxg5 {[%clk
00:08:04]} {[%emt 00:00:05]} 17. Qxg5 {[%clk 00:10:18]} {[%emt 00:00:02]} Rad8
{[%clk 00:06:51]} {[%emt 00:01:24]} 18. Rfe1 {[%clk 00:09:07]} {[%emt
00:01:20]} h6 {[%clk 00:06:02]} {[%emt 00:01:00]} 19. Qe5 {[%clk 00:08:34]}
{[%emt 00:00:43]} Qe7 {[%clk 00:05:28]} {[%emt 00:00:45]} 20. Qe4 {[%clk
00:08:15]} {[%emt 00:00:28]} g6 {[%clk 00:05:35]} {[%emt 00:00:03]} 21. Qg4
{[%clk 00:07:52]} {[%emt 00:00:33]} Qf6 {[%clk 00:03:33]} {[%emt 00:02:12]} 22.
Re3 {[%clk 00:07:02]} {[%emt 00:01:00]} Rd6 {[%clk 00:02:42]} {[%emt 00:01:00]}
23. h4 {[%clk 00:06:16]} {[%emt 00:00:57]} h5 {[%clk 00:02:42]} {[%emt
00:00:10]} 24. Qg5 {[%clk 00:06:03]} {[%emt 00:00:23]} Qxg5 {[%clk 00:02:45]}
{[%emt 00:00:07]} 25. hxg5 {[%clk 00:06:11]} {[%emt 00:00:01]} Rfd8 {[%clk
00:02:28]} {[%emt 00:00:27]} 26. Be4 {[%clk 00:06:00]} {[%emt 00:00:21]} Kg7
{[%clk 00:01:52]} {[%emt 00:00:47]} 27. f4 {[%clk 00:05:47]} {[%emt 00:00:23]}
a5 {[%clk 00:01:53]} {[%emt 00:00:10]} 28. a3 {[%clk 00:05:47]} {[%emt
00:00:10]} Ba6 {[%clk 00:01:33]} {[%emt 00:00:30]} 29. b4 {[%clk 00:05:44]}
{[%emt 00:00:12]} Bb7 {[%clk 00:01:19]} {[%emt 00:00:23]} 30. Kf2 {[%clk
00:05:28]} {[%emt 00:00:27]} Ra8 {[%clk 00:01:25]} {[%emt 00:00:04]} 31. Ree1
{[%clk 00:05:36]} {[%emt 00:00:02]} Ra7 {[%clk 00:01:21]} {[%emt 00:00:14]} 32.
Ke3 {[%clk 00:05:10]} {[%emt 00:00:36]} Rd8 {[%clk 00:01:23]} {[%emt 00:00:08]}
33. g3 {[%clk 00:04:55]} {[%emt 00:00:25]} Rda8 {[%clk 00:01:12]} {[%emt
00:00:22]} 34. Rac1 {[%clk 00:04:50]} {[%emt 00:00:14]} axb4 {[%clk 00:01:18]}
{[%emt 00:00:04]} 35. axb4 {[%clk 00:04:58]} {[%emt 00:00:02]} Ra3 {[%clk
00:00:57]} {[%emt 00:00:31]} 36. Re2 {[%clk 00:04:49]} {[%emt 00:00:19]} Rb3
{[%clk 00:00:47]} {[%emt 00:00:21]} 37. Rec2 {[%clk 00:04:38]} {[%emt
00:00:20]} Raa3 {[%clk 00:00:48]} {[%emt 00:00:08]} 38. Kf2 {[%clk 00:04:31]}
{[%emt 00:00:17]} Kf8 {[%clk 00:00:48]} {[%emt 00:00:11]} 39. Bf3 {[%clk
00:04:31]} {[%emt 00:00:09]} Ke7 {[%clk 00:00:53]} {[%emt 00:00:06]} 40. g4
{[%clk 00:04:36]} {[%emt 00:00:06]} hxg4 {[%clk 00:00:57]} {[%emt 00:00:05]} 41.
Bxg4 {[%clk 00:04:43]} {[%emt 00:00:02]} Ra8 {[%clk 00:00:28]} {[%emt
00:00:40]} 42. Rh1 {[%clk 00:04:44]} {[%emt 00:00:08]} Raa3 {[%clk 00:00:33]}
{[%emt 00:00:06]} 43. Rhc1 {[%clk 00:04:52]} {[%emt 00:00:02]} f6 {[%clk
00:00:35]} {[%emt 00:00:07]} 44. Bf3 {[%clk 00:04:52]} {[%emt 00:00:10]} fxg5
{[%clk 00:00:42]} {[%emt 00:00:04]} 45. fxg5 {[%clk 00:05:00]} {[%emt
00:00:01]} Ra8 {[%clk 00:00:28]} {[%emt 00:00:25]} 46. Rh1 {[%clk 00:05:03]}
{[%emt 00:00:07]} Rf8 {[%clk 00:00:27]} {[%emt 00:00:12]} 47. Ke3 {[%clk
00:05:02]} {[%emt 00:00:10]} Rxf3+ {[%clk 00:00:31]} {[%emt 00:00:06]} 48. Kxf3
{[%clk 00:05:08]} {[%emt 00:00:04]} c5+ {[%clk 00:00:40]} {[%emt 00:00:01]} 49.
Kf4 {[%clk 00:05:14]} {[%emt 00:00:04]} Bxh1 {[%clk 00:00:48]} {[%emt
00:00:02]} 50. bxc5 {[%clk 00:05:20]} {[%emt 00:00:04]} b4 {[%clk 00:00:27]}
{[%emt 00:00:31]} 51. Rh2 {[%clk 00:05:09]} {[%emt 00:00:20]} Bd5 {[%clk
00:00:35]} {[%emt 00:00:04]} 52. Rh7+ {[%clk 00:05:09]} {[%emt 00:00:10]} Kf8
{[%clk 00:00:32]} {[%emt 00:00:13]} 53. cxb4 {[%clk 00:05:15]} {[%emt
00:00:03]} Rxb4 {[%clk 00:00:39]} {[%emt 00:00:03]} 54. Ke5 {[%emt 00:00:11]}
Rb1 {[%clk 00:00:38]} 55. Kd6 {[%clk 00:05:12]} {[%emt 00:00:22]} Rc1 {[%clk
00:00:32]} {[%emt 00:00:17]} 56. Rh8+ {[%clk 00:05:07]} {[%emt 00:00:15]} Kg7
{[%clk 00:00:36]} {[%emt 00:00:06]} 57. Rc8 {[%clk 00:05:15]} {[%emt 00:00:02]}
Rf1 {[%clk 00:00:14]} {[%emt 00:00:32]} 58. c6 {[%clk 00:05:04]} {[%emt
00:00:21]} Rc1 {[%clk 00:00:13]} {[%emt 00:00:11]} 59. Rc7+ {[%clk 00:05:09]}
{[%emt 00:00:05]} Kf8 {[%clk 00:00:21]} {[%emt 00:00:02]} 60. Rc8+ {[%clk
00:05:15]} {[%emt 00:00:04]} Kf7 {[%clk 00:00:30]} {[%emt 00:00:01]} 61. Rc7+
{[%clk 00:05:24]} {[%emt 00:00:01]} Kf8 {[%clk 00:00:38]} {[%emt 00:00:03]} 62.
Rc8+ {[%clk 00:05:32]} {[%emt 00:00:01]} Kf7 {[%clk 00:00:46]} {[%emt
00:00:02]} 63. Rc7+ {[%clk 00:05:39]} {[%emt 00:00:03]} 1/2-1/2

[Event "British Rapidplay Championship 2023"]
[Site "Mercure Bradford, Bankfield Hotel"]
[Date "2023.04.15"]
[Round "6.6"]
[White "Walker, David J"]
[Black "Senior, Gary"]
[Result "0-1"]
[TimeControl "15 minutes plus 10 seconds per move"]
[WhiteElo "2250"]
[BlackElo "1911"]

1. c4 {[%clk 00:15:18]} {[%emt 00:00:02]} f5 {[%clk 00:15:18]} {[%emt
00:00:02]} 2. Nc3 {[%clk 00:15:25]} {[%emt 00:00:03]} Nf6 {[%clk 00:15:26]}
{[%emt 00:00:02]} 3. g3 {[%clk 00:15:32]} {[%emt 00:00:04]} d6 {[%clk
00:15:31]} {[%emt 00:00:03]} 4. Bg2 {[%clk 00:15:39]} {[%emt 00:00:03]} e5
{[%clk 00:15:37]} {[%emt 00:00:04]} 5. e3 {[%clk 00:15:42]} {[%emt 00:00:08]}
Be7 {[%clk 00:15:08]} {[%emt 00:00:38]} 6. Nge2 {[%clk 00:15:49]} {[%emt
00:00:03]} c6 {[%clk 00:14:53]} {[%emt 00:00:25]} 7. O-O {[%clk 00:15:53]}
{[%emt 00:00:07]} Be6 {[%clk 00:14:42]} {[%emt 00:00:20]} 8. b3 {[%clk
00:15:44]} {[%emt 00:00:21]} O-O {[%clk 00:13:12]} {[%emt 00:01:39]} 9. d4
{[%clk 00:14:14]} {[%emt 00:01:40]} Bf7 {[%clk 00:12:15]} {[%emt 00:01:06]} 10.
c5 {[%clk 00:10:47]} {[%emt 00:03:38]} e4 {[%clk 00:11:33]} {[%emt 00:00:52]}
11. cxd6 {[%clk 00:08:54]} {[%emt 00:02:04]} Bxd6 {[%clk 00:11:30]} {[%emt
00:00:12]} 12. f3 {[%clk 00:08:43]} {[%emt 00:00:22]} exf3 {[%clk 00:10:34]}
{[%emt 00:01:05]} 13. Bxf3 {[%clk 00:08:31]} {[%emt 00:00:22]} Re8 {[%clk
00:09:09]} {[%emt 00:01:35]} 14. Bg2 {[%clk 00:07:32]} {[%emt 00:01:09]} g6
{[%clk 00:08:09]} {[%emt 00:01:09]} 15. Bd2 {[%clk 00:05:16]} {[%emt 00:02:26]}
Na6 {[%clk 00:07:57]} {[%emt 00:00:23]} 16. Nf4 {[%clk 00:04:34]} {[%emt
00:00:52]} Nc7 {[%clk 00:07:36]} {[%emt 00:00:30]} 17. Qc2 {[%clk 00:04:39]}
{[%emt 00:00:06]} Bxf4 {[%clk 00:06:16]} {[%emt 00:01:29]} 18. Rxf4 {[%clk
00:04:07]} {[%emt 00:00:43]} Ncd5 {[%clk 00:06:00]} {[%emt 00:00:26]} 19. Nxd5
{[%clk 00:03:46]} {[%emt 00:00:31]} Bxd5 {[%clk 00:05:46]} {[%emt 00:00:23]} 20.
Bf1 {[%clk 00:03:42]} {[%emt 00:00:15]} b5 {[%clk 00:05:00]} {[%emt 00:00:56]}
21. Re1 {[%clk 00:03:13]} {[%emt 00:00:39]} Qd6 {[%clk 00:04:19]} {[%emt
00:00:50]} 22. Qc5 {[%clk 00:02:58]} {[%emt 00:00:26]} Qxc5 {[%clk 00:04:00]}
{[%emt 00:00:30]} 23. dxc5 {[%clk 00:03:06]} {[%emt 00:00:01]} Ne4 {[%clk
00:04:09]} {[%emt 00:00:01]} 24. Bc1 {[%clk 00:02:57]} {[%emt 00:00:19]} Nxc5
{[%clk 00:04:12]} {[%emt 00:00:07]} 25. Bg2 {[%clk 00:02:58]} {[%emt 00:00:09]}
Bxg2 {[%clk 00:03:58]} {[%emt 00:00:24]} 26. Kxg2 {[%clk 00:03:07]} {[%emt
00:00:01]} Nd3 {[%clk 00:04:06]} {[%emt 00:00:02]} 0-1

[Event "British Rapidplay Championship 2023"]
[Site "Mercure Bradford, Bankfield Hotel"]
[Date "2023.04.15"]
[Round "6.7"]
[White "Hryshchenko, Kamila"]
[Black "Shaw, Peter"]
[Result "1-0"]
[TimeControl "15 minutes plus 10 seconds per move"]
[WhiteElo "2019"]
[BlackElo "2231"]

1. e4 {[%clk 00:15:16]} {[%emt 00:00:02]} d6 {[%clk 00:15:18]} {[%emt
00:00:05]} 2. d4 {[%clk 00:15:24]} {[%emt 00:00:02]} Nf6 {[%clk 00:15:26]}
{[%emt 00:00:02]} 3. Nc3 {[%clk 00:15:32]} {[%emt 00:00:02]} c6 {[%clk
00:15:35]} {[%emt 00:00:02]} 4. f3 {[%clk 00:15:35]} {[%emt 00:00:07]} Qc7
{[%clk 00:14:59]} {[%emt 00:00:46]} 5. Be3 {[%clk 00:15:39]} {[%emt 00:00:06]}
e5 {[%clk 00:14:58]} {[%emt 00:00:10]} 6. Nge2 {[%clk 00:15:24]} {[%emt
00:00:25]} Be7 {[%clk 00:14:57]} {[%emt 00:00:11]} 7. Qd2 {[%clk 00:15:22]}
{[%emt 00:00:12]} b5 {[%clk 00:14:18]} {[%emt 00:00:50]} 8. a4 {[%clk
00:15:05]} {[%emt 00:00:27]} b4 {[%clk 00:14:20]} {[%emt 00:00:08]} 9. Nd1
{[%clk 00:15:12]} {[%emt 00:00:02]} a5 {[%clk 00:14:15]} {[%emt 00:00:15]} 10.
Nf2 {[%clk 00:15:09]} {[%emt 00:00:13]} O-O {[%emt 00:00:55]} 11. g4 {[%clk
00:14:43]} {[%emt 00:00:34]} Re8 {[%clk 00:11:54]} {[%emt 00:01:48]} 12. h4
{[%clk 00:13:03]} {[%emt 00:01:50]} Nbd7 {[%clk 00:09:18]} {[%emt 00:02:46]} 13.
h5 {[%clk 00:12:52]} {[%emt 00:00:21]} Nb6 {[%clk 00:09:21]} {[%emt 00:00:07]}
14. b3 {[%clk 00:10:22]} {[%emt 00:02:40]} Nfd7 {[%clk 00:08:08]} {[%emt
00:01:22]} 15. O-O-O {[%clk 00:08:37]} {[%emt 00:01:55]} c5 {[%clk 00:06:38]}
{[%emt 00:01:41]} 16. dxc5 {[%clk 00:06:30]} {[%emt 00:02:17]} dxc5 {[%clk
00:06:42]} {[%emt 00:00:06]} 17. Ng3 {[%clk 00:06:12]} {[%emt 00:00:28]} c4
{[%clk 00:06:40]} {[%emt 00:00:12]} 18. Kb1 {[%clk 00:05:36]} {[%emt 00:00:45]}
Ba6 {[%clk 00:04:07]} {[%emt 00:02:44]} 19. Nf5 {[%clk 00:05:30]} {[%emt
00:00:16]} Bf8 {[%clk 00:04:08]} {[%emt 00:00:09]} 20. Bh3 {[%clk 00:03:25]}
{[%emt 00:02:14]} c3 {[%clk 00:03:35]} {[%emt 00:00:43]} 21. Qc1 {[%clk
00:02:34]} {[%emt 00:01:01]} Rab8 {[%clk 00:01:52]} {[%emt 00:01:53]} 22. g5
{[%clk 00:02:17]} {[%emt 00:00:26]} Nxa4 {[%clk 00:01:44]} {[%emt 00:00:18]} 23.
Rxd7 {[%clk 00:02:18]} {[%emt 00:00:09]} Qc6 {[%clk 00:01:07]} {[%emt
00:00:48]} 24. g6 {[%clk 00:01:50]} {[%emt 00:00:38]} fxg6 {[%clk 00:00:44]}
{[%emt 00:00:34]} 25. hxg6 {[%clk 00:01:56]} {[%emt 00:00:04]} hxg6 {[%clk
00:00:52]} {[%emt 00:00:02]} 26. Bg4 {[%clk 00:00:31]} {[%emt 00:01:35]} Nc5
{[%clk 00:00:38]} {[%emt 00:00:24]} 27. Bxc5 {[%clk 00:00:31]} {[%emt
00:00:10]} Qxc5 {[%clk 00:00:41]} {[%emt 00:00:07]} 28. Qg1 {[%clk 00:00:26]}
{[%emt 00:00:14]} a4 {[%clk 00:00:42]} {[%emt 00:00:09]} 29. Qh2 {[%clk
00:00:33]} {[%emt 00:00:03]} 1-0

[Event "British Rapidplay Championship 2023"]
[Site "Mercure Bradford, Bankfield Hotel"]
[Date "2023.04.15"]
[Round "6.8"]
[White "Arkell, Keith C"]
[Black "Lau, Luke"]
[Result "1/2-1/2"]
[TimeControl "15 minutes plus 10 seconds per move"]
[WhiteElo "2447"]
[BlackElo "1917"]

1. d4 {[%clk 00:14:40]} {[%emt 00:00:40]} d5 {[%clk 00:15:19]} {[%emt
00:00:01]} 2. Nf3 {[%clk 00:14:48]} {[%emt 00:00:01]} Nf6 {[%clk 00:15:28]}
{[%emt 00:00:01]} 3. c4 {[%clk 00:14:57]} {[%emt 00:00:01]} e6 {[%clk
00:15:37]} 4. cxd5 {[%clk 00:15:06]} {[%emt 00:00:01]} exd5 {[%clk 00:15:44]}
{[%emt 00:00:03]} 5. Nc3 {[%clk 00:15:14]} {[%emt 00:00:01]} c6 {[%clk
00:15:51]} {[%emt 00:00:03]} 6. Qc2 {[%clk 00:15:17]} {[%emt 00:00:08]} g6
{[%clk 00:15:27]} {[%emt 00:00:34]} 7. Bg5 {[%clk 00:15:16]} {[%emt 00:00:11]}
Bg7 {[%clk 00:15:13]} {[%emt 00:00:25]} 8. e3 {[%clk 00:15:24]} {[%emt
00:00:02]} Bf5 {[%clk 00:15:14]} {[%emt 00:00:09]} 9. Bd3 {[%clk 00:15:33]}
{[%emt 00:00:01]} Bxd3 {[%clk 00:15:22]} {[%emt 00:00:03]} 10. Qxd3 {[%clk
00:15:41]} {[%emt 00:00:01]} O-O {[%clk 00:15:06]} {[%emt 00:00:25]} 11. b4
{[%clk 00:15:49]} {[%emt 00:00:02]} Qd6 {[%clk 00:13:56]} {[%emt 00:01:20]} 12.
Bxf6 {[%clk 00:15:52]} {[%emt 00:00:07]} Qxf6 {[%clk 00:13:13]} {[%emt
00:00:53]} 13. b5 {[%clk 00:15:44]} {[%emt 00:00:18]} Nd7 {[%clk 00:12:51]}
{[%emt 00:00:32]} 14. bxc6 {[%clk 00:15:52]} {[%emt 00:00:02]} bxc6 {[%clk
00:13:00]} {[%emt 00:00:01]} 15. Rc1 {[%clk 00:15:59]} {[%emt 00:00:03]} Nb6
{[%clk 00:12:19]} {[%emt 00:00:50]} 16. O-O {[%emt 00:02:10]} Rfc8 {[%clk
00:10:22]} 17. Ne2 {[%clk 00:16:10]} {[%emt 00:00:06]} Qe7 {[%clk 00:09:28]}
{[%emt 00:01:04]} 18. Rc5 {[%clk 00:15:00]} {[%emt 00:01:20]} Rab8 {[%clk
00:06:05]} {[%emt 00:03:34]} 19. Rfc1 {[%clk 00:14:38]} {[%emt 00:00:32]} Qb7
{[%clk 00:05:24]} {[%emt 00:00:51]} 20. R5c2 {[%clk 00:14:41]} {[%emt
00:00:06]} a5 {[%clk 00:04:18]} {[%emt 00:01:16]} 21. g3 {[%clk 00:14:27]}
{[%emt 00:00:24]} a4 {[%clk 00:04:00]} {[%emt 00:00:28]} 22. Nf4 {[%clk
00:14:12]} {[%emt 00:00:25]} Nc4 {[%clk 00:03:39]} {[%emt 00:00:32]} 23. Nd2
{[%clk 00:14:12]} {[%emt 00:00:09]} Nxd2 {[%clk 00:02:08]} {[%emt 00:01:41]} 24.
Qxd2 {[%clk 00:14:20]} {[%emt 00:00:02]} Bf8 {[%clk 00:02:02]} {[%emt
00:00:15]} 25. Nd3 {[%clk 00:14:13]} {[%emt 00:00:18]} Bd6 {[%clk 00:02:10]}
{[%emt 00:00:02]} 26. Nc5 {[%clk 00:14:18]} {[%emt 00:00:05]} Bxc5 {[%clk
00:01:59]} {[%emt 00:00:21]} 27. Rxc5 {[%clk 00:14:26]} {[%emt 00:00:02]} Qb2
{[%clk 00:01:31]} {[%emt 00:00:38]} 28. Qxb2 {[%clk 00:12:29]} {[%emt
00:02:07]} Rxb2 {[%clk 00:01:39]} {[%emt 00:00:01]} 29. Rxd5 {[%clk 00:12:04]}
{[%emt 00:00:35]} Rxa2 {[%clk 00:01:06]} {[%emt 00:00:43]} 30. Rdc5 {[%clk
00:11:56]} {[%emt 00:00:19]} Rb8 {[%clk 00:01:12]} {[%emt 00:00:03]} 31. Rxc6
{[%clk 00:11:59]} {[%emt 00:00:07]} Rbb2 {[%clk 00:01:21]} {[%emt 00:00:01]} 32.
Rf6 {[%clk 00:12:07]} {[%emt 00:00:01]} Kg7 {[%clk 00:01:15]} {[%emt 00:00:16]}
33. Rf4 {[%clk 00:12:11]} {[%emt 00:00:06]} Rc2 {[%clk 00:00:26]} {[%emt
00:00:59]} 34. Rxc2 {[%clk 00:11:59]} {[%emt 00:00:21]} Rxc2 {[%clk 00:00:35]}
{[%emt 00:00:01]} 35. d5 {[%clk 00:12:08]} Rd2 {[%clk 00:00:39]} {[%emt
00:00:05]} 36. Rxa4 {[%clk 00:12:16]} {[%emt 00:00:03]} Rxd5 {[%clk 00:00:48]}
{[%emt 00:00:01]} 37. g4 {[%clk 00:12:24]} {[%emt 00:00:02]} h5 {[%clk
00:00:52]} {[%emt 00:00:06]} 38. h3 {[%clk 00:12:32]} {[%emt 00:00:02]} hxg4
{[%clk 00:00:55]} {[%emt 00:00:07]} 39. hxg4 {[%clk 00:12:42]} Rd2 {[%clk
00:00:49]} {[%emt 00:00:16]} 40. Kg2 {[%clk 00:12:50]} {[%emt 00:00:01]} Rb2
{[%clk 00:00:51]} {[%emt 00:00:07]} 41. g5 {[%clk 00:12:53]} {[%emt 00:00:07]}
Rc2 {[%clk 00:00:53]} {[%emt 00:00:08]} 42. Kg3 {[%clk 00:13:02]} {[%emt
00:00:02]} Re2 {[%clk 00:00:58]} {[%emt 00:00:04]} 43. Ra3 {[%clk 00:13:07]}
{[%emt 00:00:05]} Rb2 {[%clk 00:00:55]} {[%emt 00:00:13]} 44. f3 {[%clk
00:13:13]} {[%emt 00:00:04]} Rb4 {[%clk 00:00:52]} {[%emt 00:00:13]} 45. Ra1
{[%clk 00:13:18]} {[%emt 00:00:06]} Rc4 {[%clk 00:00:56]} {[%emt 00:00:05]} 46.
f4 {[%clk 00:13:22]} {[%emt 00:00:05]} Rb4 {[%clk 00:01:00]} {[%emt 00:00:06]}
47. Kf3 {[%clk 00:13:31]} {[%emt 00:00:02]} Rc4 {[%clk 00:00:43]} {[%emt
00:00:27]} 48. Rb1 {[%clk 00:13:40]} {[%emt 00:00:02]} Ra4 {[%clk 00:00:48]}
{[%emt 00:00:04]} 49. Rd1 {[%clk 00:13:48]} {[%emt 00:00:02]} Rc4 {[%clk
00:00:54]} {[%emt 00:00:04]} 50. Rd4 {[%clk 00:13:53]} {[%emt 00:00:05]} Rc3
{[%clk 00:00:56]} {[%emt 00:00:08]} 51. Rd6 {[%clk 00:14:01]} {[%emt 00:00:02]}
Rc4 {[%clk 00:01:01]} {[%emt 00:00:04]} 52. e4 {[%clk 00:14:08]} {[%emt
00:00:03]} Kf8 {[%clk 00:00:59]} {[%emt 00:00:12]} 53. f5 {[%clk 00:14:14]}
{[%emt 00:00:04]} gxf5 {[%clk 00:00:50]} {[%emt 00:00:19]} 54. exf5 {[%clk
00:14:23]} Kg7 {[%clk 00:00:44]} {[%emt 00:00:16]} 55. Rd7 {[%clk 00:14:30]}
{[%emt 00:00:03]} Kg8 {[%clk 00:00:43]} {[%emt 00:00:10]} 56. Re7 {[%clk
00:14:36]} {[%emt 00:00:04]} Kf8 {[%clk 00:00:27]} {[%emt 00:00:26]} 57. Re4
{[%clk 00:14:44]} {[%emt 00:00:02]} Rc1 {[%clk 00:00:31]} {[%emt 00:00:06]} 58.
Kf4 {[%clk 00:14:53]} {[%emt 00:00:02]} Kg7 {[%clk 00:00:35]} {[%emt 00:00:06]}
59. Re3 {[%clk 00:14:40]} {[%emt 00:00:22]} Rc5 {[%clk 00:00:33]} {[%emt
00:00:12]} 60. Kg4 {[%clk 00:14:47]} {[%emt 00:00:04]} Rc1 {[%clk 00:00:38]}
{[%emt 00:00:04]} 61. Rh3 {[%clk 00:14:40]} {[%emt 00:00:19]} Rg1+ {[%clk
00:00:37]} {[%emt 00:00:11]} 62. Kh5 {[%clk 00:14:40]} {[%emt 00:00:09]} Rg2
{[%clk 00:00:32]} {[%emt 00:00:12]} 63. Kh4 {[%clk 00:14:37]} {[%emt 00:00:16]}
Rg1 {[%clk 00:00:31]} {[%emt 00:00:11]} 64. Rg3 {[%emt 00:00:16]} Ra1 {[%clk
00:00:26]} 65. Re3 {[%clk 00:14:42]} {[%emt 00:00:12]} Rh1+ {[%clk 00:00:29]}
{[%emt 00:00:07]} 66. Kg4 {[%clk 00:14:51]} {[%emt 00:00:01]} Rg1+ {[%clk
00:00:36]} {[%emt 00:00:03]} 67. Kf4 {[%clk 00:15:00]} {[%emt 00:00:01]} Ra1
{[%clk 00:00:36]} {[%emt 00:00:09]} 68. Rf3 {[%clk 00:13:38]} {[%emt 00:01:32]}
Ra4+ {[%clk 00:00:25]} {[%emt 00:00:21]} 69. Kg3 {[%clk 00:13:46]} {[%emt
00:00:01]} Rb4 {[%clk 00:00:31]} {[%emt 00:00:04]} 70. Rf1 {[%clk 00:13:47]}
{[%emt 00:00:10]} Ra4 {[%clk 00:00:37]} {[%emt 00:00:04]} 71. Re1 {[%clk
00:13:52]} {[%emt 00:00:04]} Rc4 {[%clk 00:00:37]} {[%emt 00:00:11]} 72. Re7
{[%clk 00:13:55]} {[%emt 00:00:06]} Kg8 {[%clk 00:00:40]} {[%emt 00:00:06]} 73.
Rd7 {[%clk 00:14:04]} {[%emt 00:00:02]} Ra4 {[%clk 00:00:41]} {[%emt 00:00:07]}
74. Kf3 {[%clk 00:14:08]} {[%emt 00:00:09]} Rb4 {[%clk 00:00:46]} {[%emt
00:00:05]} 75. f6 {[%clk 00:12:02]} {[%emt 00:02:16]} Ra4 {[%clk 00:00:38]}
{[%emt 00:00:18]} 76. Re7 {[%clk 00:12:01]} {[%emt 00:00:12]} Rb4 {[%clk
00:00:29]} {[%emt 00:00:19]} 77. Re4 {[%clk 00:12:07]} {[%emt 00:00:03]} Rb3+
{[%clk 00:00:32]} {[%emt 00:00:07]} 78. Kg4 {[%clk 00:12:16]} {[%emt 00:00:01]}
Kh7 {[%clk 00:00:33]} {[%emt 00:00:09]} 79. Re8 {[%clk 00:12:25]} {[%emt
00:00:01]} Rb1 {[%clk 00:00:16]} {[%emt 00:00:26]} 80. Rf8 {[%clk 00:12:29]}
{[%emt 00:00:06]} Rg1+ {[%clk 00:00:24]} {[%emt 00:00:02]} 81. Kf4 {[%clk
00:12:38]} {[%emt 00:00:01]} Rf1+ {[%clk 00:00:31]} {[%emt 00:00:02]} 82. Ke5
{[%clk 00:12:47]} {[%emt 00:00:01]} Re1+ {[%clk 00:00:39]} {[%emt 00:00:03]} 83.
Kf4 {[%clk 00:12:35]} {[%emt 00:00:22]} Rf1+ {[%clk 00:00:47]} {[%emt
00:00:03]} 84. Ke4 {[%clk 00:12:44]} Re1+ {[%clk 00:00:54]} {[%emt 00:00:02]}
85. Kf3 {[%clk 00:12:52]} {[%emt 00:00:01]} Kg6 {[%clk 00:00:43]} {[%emt
00:00:21]} 86. Rg8+ {[%clk 00:13:00]} {[%emt 00:00:03]} Kf5 {[%clk 00:00:51]}
{[%emt 00:00:02]} 87. Rg7 {[%clk 00:13:09]} {[%emt 00:00:01]} Rg1 {[%clk
00:00:50]} {[%emt 00:00:11]} 88. Rxf7 {[%clk 00:12:34]} {[%emt 00:00:45]} Rxg5
{[%clk 00:00:57]} {[%emt 00:00:03]} 89. Rf8 {[%clk 00:12:41]} {[%emt 00:00:04]}
Ke6 {[%clk 00:00:57]} {[%emt 00:00:09]} 90. Ke4 {[%clk 00:12:46]} {[%emt
00:00:05]} Re5+ {[%clk 00:01:03]} {[%emt 00:00:05]} 91. Kd4 {[%clk 00:12:55]}
{[%emt 00:00:01]} Rd5+ {[%clk 00:01:11]} {[%emt 00:00:01]} 92. Kc4 {[%clk
00:13:01]} {[%emt 00:00:03]} Rf5 {[%clk 00:01:20]} {[%emt 00:00:02]} 1/2-1/2